bitfinex/quotes_SOLUSD_20250922
["timestamp","ask_amount","ask_price","bid_price","bid_amount"]
[1758555210871,36.36,221.46,221.45,6.29538024]
[1758555211274,36.32,221.46,221.45,6.99538024]
[1758555211473,36.32,221.46,221.45,6.29538024]
[1758555211952,13.59559401,221.49,221.45,6.29538024]
[1758555212157,49.91559401,221.48,221.47,6.09538024]
[1758555212358,13.59559401,221.45,221.23,6.49538024]
[1758555212681,70.18587389,221.48,221.23,6.49538024]
[1758555212682,39.59559401,221.26,221.23,0.2]
[1758555212883,16.09620484,221.24,221.23,0.2]
[1758555213075,55.74642952,221.24,221.23,0.2]
[1758555213289,56.42642952,221.24,221.23,0.2]
[1758555213581,59.75159723,221.24,221.23,0.2]
[1758555214079,57.2709864,221.24,221.23,0.2]
[1758555214387,22.75159723,221.24,221.23,0.2]
[1758555214681,27.04008111,221.24,221.23,0.2]
[1758555214980,82.5909864,221.24,221.23,0.2]
[1758555215156,63.38008111,221.24,221.23,0.2]
[1758555216275,57.2709864,221.24,221.23,0.2]
[1758555216659,56.6309864,221.24,221.23,0.2]
[1758555216860,3.32516771,221.24,221.23,7.00909471]
[1758555217064,39.78516771,221.24,221.23,7.00909471]
[1758555217663,36.46,221.24,221.23,7.00909471]
[1758555218576,36.46,221.24,221.23,0.9]
[1758555218770,36.46,221.24,221.23,6.30909471]
[1758555218959,36.46,221.24,221.23,7.00909471]
[1758555219569,36.62,221.31,221.23,11.52924505]
[1758555219770,50.21559401,221.31,221.3,6.10909471]
[1758555219977,86.67559401,221.31,221.3,6.10909471]
[1758555220398,36.62,221.31,221.3,6.10909471]
[1758555220564,4.51648027,221.42,221.31,4.51854864]
[1758555220565,0.68,221.42,221.31,4.51854864]
[1758555220763,36.44,221.41,221.4,6.10909471]
[1758555220965,26.68,221.44,221.4,6.10909471]
[1758555221183,36.44,221.43,221.4,6.10909471]
[1758555221394,36.44,221.43,221.42,6.10909471]
[1758555221574,50.03559401,221.43,221.42,6.10909471]
[1758555221888,50.03559401,221.43,221.31,15.81492024]
[1758555221889,13.59559401,221.42,221.33,0.7]
[1758555222097,26.0,221.4,221.38,6.10909471]
[1758555222262,36.42,221.39,221.38,6.10909471]
[1758555223067,36.42,221.39,221.37,4.51729842]
[1758555223269,36.42,221.39,221.38,6.10909471]
[1758555223982,13.59559401,221.38,221.29,0.7]
[1758555224295,13.59559401,221.38,221.34,6.10909471]
[1758555224584,6.10909471,221.41,221.26,26.0]
[1758555224585,13.59559401,221.41,221.37,6.10909471]
[1758555224796,26.0,221.37,221.36,6.10909471]
[1758555225096,62.42,221.37,221.36,6.10909471]
[1758555226269,36.42,221.37,221.36,6.10909471]
[1758555226796,36.42,221.37,221.36,6.80909471]
[1758555227092,6.10909471,221.44,221.36,6.80909471]
[1758555227093,0.68,221.48,221.37,4.51732393]
[1758555227383,36.58,221.46,221.44,6.10909471]
[1758555227567,36.58,221.46,221.45,6.10909471]
[1758555227768,36.58,221.46,221.44,6.10909471]
[1758555227983,36.58,221.46,221.41,0.7]
[1758555228162,36.58,221.46,221.43,6.10909471]
[1758555228369,36.58,221.46,221.44,6.10909471]
[1758555228590,36.58,221.46,221.41,0.7]
[1758555228885,13.59559401,221.45,221.41,6.10909471]
[1758555229387,14.27559401,221.45,221.4,6.10909471]
[1758555229683,14.27559401,221.45,221.41,6.10909471]
[1758555231070,14.27559401,221.45,221.4,6.10909471]
[1758555231269,13.59559401,221.45,221.4,6.10909471]
[1758555231481,13.59559401,221.45,221.41,6.10909471]
[1758555231881,14.27559401,221.45,221.41,6.10909471]
[1758555233193,14.27559401,221.45,221.43,6.10909471]
[1758555233491,13.59559401,221.45,221.43,6.10909471]
[1758555233984,13.59559401,221.45,221.44,6.10909471]
[1758555235397,13.59559401,221.45,221.4,4.51671058]
[1758555235691,14.27559401,221.45,221.43,6.10909471]
[1758555236687,50.01559401,221.44,221.43,6.10909471]
[1758555238092,39.59559401,221.4,221.26,0.68]
[1758555238397,13.59559401,221.35,221.29,6.10909471]
[1758555238582,13.59559401,221.33,221.3,6.10909471]
[1758555238785,36.74,221.32,221.3,6.10909471]
[1758555239495,0.66,221.38,221.31,6.78909471]
[1758555239703,13.59559401,221.36,221.35,6.10909471]
[1758555239880,13.59559401,221.36,221.33,6.10909471]
[1758555239881,26.0,221.34,221.33,6.10909471]
[1758555240198,26.0,221.34,221.32,6.10909471]
[1758555240369,36.74,221.33,221.32,6.10909471]
[1758555240574,22.57396606,221.5,221.32,6.10909471]
[1758555240575,0.66,221.44,221.32,6.78909471]
[1758555240891,36.76,221.43,221.42,6.10909471]
[1758555241090,36.76,221.43,221.39,6.10909471]
[1758555241397,26.0,221.4,221.38,6.10909471]
[1758555241694,36.82,221.39,221.38,6.10909471]
[1758555242275,36.82,221.39,221.38,6.78909471]
[1758555242276,36.8,221.39,221.38,6.78909471]
[1758555244381,36.8,221.39,221.38,6.10909471]
[1758555244700,13.59559401,221.42,221.38,6.10909471]
[1758555244894,36.76,221.41,221.4,6.10909471]
[1758555245489,36.76,221.41,221.34,0.67]
[1758555245691,36.76,221.41,221.39,6.10909471]
[1758555247501,13.59559401,221.4,221.34,0.67]
[1758555247699,14.25559401,221.4,221.37,6.10909471]
[1758555247907,13.59559401,221.4,221.38,6.10909471]
[1758555249494,13.59559401,221.4,221.34,0.67]
[1758555249698,13.59559401,221.4,221.38,6.10909471]
[1758555249890,13.59559401,221.4,221.39,6.10909471]
[1758555253405,13.59559401,221.42,221.39,6.10909471]
[1758555253711,14.25559401,221.42,221.39,6.10909471]
[1758555254803,13.59559401,221.43,221.39,6.10909471]
[1758555255000,0.66,221.42,221.39,6.10909471]
[1758555255302,0.66,221.42,221.35,5.18772948]
[1758555255504,0.66,221.42,221.39,6.10909471]
[1758555255812,0.66,221.42,221.38,6.10909471]
[1758555256011,13.59559401,221.43,221.38,6.10909471]
[1758555256312,13.59559401,221.42,221.38,6.10909471]
[1758555257006,14.25559401,221.42,221.38,6.10909471]
[1758555257313,14.25559401,221.42,221.32,11.29574279]
[1758555257314,13.59559401,221.42,221.3,4.52]
[1758555257540,13.59559401,221.26,221.22,0.2]
[1758555257817,13.59559401,221.24,221.22,0.2]
[1758555258194,18.77557231,221.24,221.22,0.2]
[1758555258699,26.2889065,221.24,221.22,0.2]
[1758555259616,13.59559401,221.26,221.23,0.87]
[1758555259998,13.59559401,221.26,221.23,0.2]
[1758555260317,13.59559401,221.24,221.23,0.2]
[1758555260615,13.59559401,221.26,221.23,0.2]
[1758555260917,13.59559401,221.24,221.23,0.2]
[1758555261228,13.59559401,221.26,221.24,0.67]
[1758555261535,0.66,221.35,221.25,4.83788775]
[1758555261832,16.94368842,221.34,221.3,4.16788775]
[1758555262019,13.59559401,221.32,221.3,4.16788775]
[1758555262198,16.94368793,221.31,221.3,4.16788775]
[1758555262597,16.94368793,221.31,221.29,4.16788775]
[1758555262802,3.34779202,221.3,221.28,4.16788775]
[1758555263001,13.59559401,221.31,221.29,4.16788775]
[1758555263500,3.34809663,221.3,221.29,4.16788775]
[1758555264196,3.34809663,221.3,221.28,4.16788775]
[1758555264401,3.34809663,221.3,221.28,4.83788775]
[1758555264622,13.59559401,221.31,221.28,4.83788775]
[1758555264928,21.77148851,221.3,221.24,4.83788775]
[1758555265099,13.59559401,221.28,221.24,4.16788775]
[1758555265303,13.59559401,221.34,221.27,4.16788775]
[1758555265617,3.34742706,221.33,221.3,4.16788775]
[1758555265815,3.34742706,221.33,221.3,4.83788775]
[1758555266013,13.59559401,221.32,221.23,16.02060314]
[1758555266222,13.59559401,221.31,221.3,4.16788775]
[1758555266426,16.94311395,221.31,221.29,4.16788775]
[1758555266601,13.59559401,221.31,221.29,4.16788775]
[1758555266800,13.59559401,221.31,221.28,4.83788775]
[1758555267025,13.59559401,221.3,221.27,4.16788775]
[1758555267229,13.59559401,221.3,221.26,4.83788775]
[1758555267522,13.59559401,221.28,221.23,4.36788775]
[1758555267730,13.59559401,221.28,221.23,5.03788775]
[1758555267954,17.76348176,221.3,221.24,4.16788775]
[1758555268234,16.94150519,221.29,221.24,4.16788775]
[1758555268406,7.86525741,221.28,221.24,4.16788775]
[1758555268608,4.51934623,221.28,221.24,4.16788775]
[1758555269113,4.51934623,221.28,221.23,4.36788775]
[1758555269317,5.22934623,221.28,221.23,4.36788775]
[1758555270816,4.16788775,221.24,221.22,1e-08]
[1758555271016,50.44545568,221.23,221.22,1e-08]
[1758555271328,50.82256385,221.23,221.22,1e-08]
[1758555271526,54.16030781,221.23,221.22,1e-08]
[1758555273017,58.68049042,221.23,221.22,1e-08]
[1758555274819,58.68049042,221.23,221.15,0.2]
[1758555274820,17.76348176,221.17,221.15,0.2]
[1758555275024,22.28489063,221.17,221.15,0.2]
[1758555275224,22.99489063,221.17,221.15,0.2]
[1758555275914,26.3241622,221.17,221.15,0.2]
[1758555277429,26.3241622,221.17,221.16,1e-08]
[1758555278043,26.3241622,221.17,221.15,1e-08]
[1758555278044,13.79559401,221.16,221.15,1e-08]
[1758555278225,21.29275333,221.16,221.15,1e-08]
[1758555278419,22.00275333,221.16,221.15,1e-08]
[1758555279046,26.52436664,221.16,221.15,1e-08]
[1758555280917,29.51400034,221.16,221.15,1e-08]
[1758555281129,26.32436664,221.16,221.15,1e-08]
[1758555281341,13.59559401,221.12,221.11,1e-08]
[1758555281542,21.09275333,221.12,221.11,1e-08]
[1758555281721,21.80275333,221.12,221.11,1e-08]
[1758555282324,21.09275333,221.12,221.11,1e-08]
[1758555283144,25.61518458,221.12,221.11,1e-08]
[1758555284135,26.32518458,221.12,221.11,1e-08]
[1758555284658,39.59559401,221.08,221.06,0.2]
[1758555284948,22.28693586,221.07,221.06,0.2]
[1758555285337,22.99693586,221.07,221.06,0.2]
[1758555285842,26.30862471,221.07,221.06,1e-08]
[1758555286044,26.30862471,221.07,221.04,0.2]
[1758555286045,39.59559401,221.05,221.04,0.2]
[1758555286253,16.90728286,221.05,221.04,0.2]
[1758555286545,42.90728286,221.05,221.04,0.2]
[1758555286733,21.07517061,221.05,221.04,0.2]
[1758555287043,25.59903398,221.05,221.04,0.2]
[1758555287642,25.59397036,221.05,221.04,0.2]
[1758555288052,52.30397036,221.05,221.04,0.2]
[1758555288442,26.30397036,221.05,221.04,0.2]
[1758555288652,39.59559401,221.01,220.99,0.2]
[1758555288950,21.07010699,221.0,220.99,0.2]
[1758555289147,25.59499386,221.0,220.99,0.2]
[1758555290926,25.59499386,221.0,220.99,0.87]
[1758555290927,21.42710611,221.0,220.99,0.87]
[1758555291239,25.59499386,221.0,220.99,0.87]
[1758555291420,16.90221924,221.0,220.99,0.87]
[1758555291624,25.59499386,221.0,220.99,0.2]
[1758555292053,21.42710611,221.0,220.99,0.87]
[1758555292561,16.90221924,221.0,220.99,0.87]
[1758555293024,13.59559401,221.04,220.99,5.03788775]
[1758555293229,13.59559401,221.02,221.0,4.83788775]
[1758555293450,11.30777153,221.09,221.01,4.83788775]
[1758555293633,7.82516203,221.08,221.02,4.83788775]
[1758555293943,21.06539429,221.07,221.03,0.67]
[1758555294121,13.59559401,221.05,221.03,0.67]
[1758555294325,3.30191253,221.04,221.03,0.67]
[1758555294524,13.59559401,221.06,221.03,4.83788775]
[1758555294759,13.59559401,221.06,221.04,4.83788775]
[1758555294963,13.59559401,221.06,221.05,0.67]
[1758555295134,3.30266466,221.06,221.05,0.67]
[1758555296050,17.76348176,221.12,221.05,0.67]
[1758555296231,13.59559401,221.1,221.05,4.83788775]
[1758555296432,13.59559401,221.08,221.06,0.67]
[1758555296943,13.59559401,221.1,221.06,0.67]
[1758555297250,7.82897921,221.09,221.06,4.83788775]
[1758555297445,16.90148797,221.08,221.07,0.69]
[1758555298330,19.87813114,221.08,220.99,0.2]
[1758555298525,13.59559401,221.08,221.07,0.69]
[1758555298744,19.88323611,221.08,221.07,0.69]
[1758555299134,4.5234541,221.07,221.04,0.69]
[1758555299346,16.90502656,221.06,221.04,0.69]
[1758555299548,3.30943255,221.05,221.04,0.69]
[1758555299746,3.30943255,221.05,221.02,4.16788775]
[1758555300336,16.90502656,221.04,220.99,0.89]
[1758555300647,6.29073015,221.03,221.0,4.85788775]
[1758555300848,3.30943255,221.02,221.01,0.69]
[1758555301227,7.83372272,221.03,221.01,0.69]
[1758555301427,3.30943255,221.02,221.0,4.16788775]
[1758555302041,3.30943255,221.02,221.01,4.85788775]
[1758555302756,3.30943255,221.02,221.01,0.69]
[1758555302956,3.30943255,221.02,221.01,4.16788775]
[1758555303153,30.52488687,221.0,220.99,0.2]
[1758555303359,50.41080752,221.0,220.99,0.2]
[1758555303548,50.41080752,221.0,220.99,0.89]
[1758555303951,50.41080752,221.0,220.99,0.2]
[1758555304259,3.30943255,221.0,220.99,5.05788775]
[1758555304557,13.59559401,221.05,220.99,5.05788775]
[1758555304768,6.30432399,221.04,221.0,0.69]
[1758555305065,3.31878677,221.03,221.0,0.69]
[1758555305262,2.98553722,221.07,221.01,4.52468214]
[1758555305553,13.59559401,221.12,221.02,0.69]
[1758555305554,2.98553722,221.11,221.02,0.69]
[1758555305735,4.52244365,221.12,221.02,0.69]
[1758555305933,2.98553722,221.13,221.11,4.16788775]
[1758555306140,13.59559401,221.14,221.12,4.16788775]
[1758555306340,4.52161331,221.16,221.13,4.16788775]
[1758555306652,16.58593068,221.15,221.04,30.535]
[1758555306957,0.69,221.21,221.05,0.67]
[1758555306958,2.99033667,221.14,221.05,0.67]
[1758555307158,7.51134693,221.19,221.07,4.535]
[1758555307342,2.99033667,221.18,221.08,0.67]
[1758555307540,2.99033667,221.18,221.09,4.535]
[1758555307757,2.99033667,221.18,221.17,4.16788775]
[1758555307939,13.59559401,221.19,221.17,4.83788775]
[1758555308136,2.99033667,221.18,221.1,4.16788775]
[1758555308335,2.99033667,221.18,221.11,4.535]
[1758555308643,2.99033667,221.18,221.17,4.16788775]
[1758555308841,2.99033667,221.18,221.1,4.16788775]
[1758555309157,7.51154111,221.18,221.11,0.67]
[1758555309358,20.60460537,221.17,221.12,4.16788775]
[1758555309551,13.59559401,221.15,221.11,4.16788775]
[1758555309737,2.99033667,221.14,221.11,4.16788775]
[1758555310055,2.99033667,221.14,221.12,4.16788775]
[1758555310474,2.99033667,221.13,221.12,4.16788775]
[1758555310635,2.99033667,221.14,221.12,4.16788775]
[1758555310835,2.99033667,221.13,221.11,4.16788775]
[1758555311052,0.69,221.12,221.1,4.16788775]
[1758555311234,2.99033667,221.11,221.08,4.16788775]
[1758555311440,3.68033667,221.1,221.07,4.16788775]
[1758555311659,2.99033667,221.11,221.07,4.16788775]
[1758555311854,26.0,221.09,221.04,0.67]
[1758555312158,2.99033667,221.08,221.07,4.16788775]
[1758555312354,2.99033667,221.08,221.02,0.67]
[1758555312558,16.58593068,221.07,221.04,4.16788775]
[1758555312860,2.99033667,221.06,221.05,4.16788775]
[1758555313251,2.99033667,221.06,221.04,4.16788775]
[1758555313252,4.52386337,221.05,221.04,4.16788775]
[1758555313450,2.99033667,221.06,221.04,4.16788775]
[1758555313651,2.99033667,221.06,221.05,4.16788775]
[1758555313961,7.5139954,221.06,221.05,4.16788775]
[1758555314144,2.99033667,221.06,221.04,4.16788775]
[1758555314462,2.99033667,221.05,221.04,4.16788775]
[1758555314662,7.51399712,221.06,221.04,4.16788775]
[1758555314848,7.51399712,221.06,221.02,4.83788775]
[1758555314849,16.58593068,221.05,221.02,4.83788775]
[1758555315158,7.51440471,221.04,221.03,4.16788775]
[1758555315350,2.99033667,221.04,221.03,4.16788775]
[1758555316461,28.99033667,221.08,221.03,4.16788775]
[1758555316661,4.52309673,221.09,221.07,4.16788775]
[1758555316867,6.35755208,221.08,221.07,4.16788775]
[1758555317047,3.01144737,221.1,221.07,4.16788775]
[1758555317246,17.33057644,221.13,221.0,4.52488687]
[1758555317247,3.01144737,221.09,221.0,11.31221719]
[1758555317443,18.1182298,221.11,221.01,4.52468214]
[1758555317673,9.70764066,221.1,221.0,26.0]
[1758555317846,6.35959711,221.09,221.0,26.0]
[1758555318047,3.34814974,221.08,221.0,26.0]
[1758555318247,3.34814974,221.07,221.0,26.0]
[1758555318468,3.01144737,221.08,221.06,4.16788775]
[1758555318657,29.42481928,221.11,221.05,6.11648949]
[1758555318658,9.70867501,221.07,221.05,6.11648949]
[1758555318964,6.36033137,221.06,221.04,6.11648949]
[1758555319142,3.348884,221.05,221.01,6.11648949]
[1758555319348,10.88439941,221.04,221.01,6.11648949]
[1758555319547,3.348884,221.03,221.02,6.11648949]
[1758555319767,3.348884,221.03,221.01,6.11648949]
[1758555319971,3.348884,221.02,220.99,0.2]
[1758555320180,3.34926061,221.01,220.99,0.2]
[1758555320370,3.34926061,221.0,220.99,0.2]
[1758555320548,3.34926061,221.01,220.99,0.2]
[1758555320748,6.36070798,221.0,220.99,0.2]
[1758555320964,9.71058445,221.0,220.99,0.2]
[1758555321378,14.23547132,221.0,220.99,0.2]
[1758555322981,27.83106533,221.0,220.99,0.2]
[1758555323473,28.52106533,221.0,220.99,0.2]
[1758555323858,9.71058445,221.0,220.99,6.98648949]
[1758555324070,3.34926061,221.0,220.99,6.98648949]
[1758555324368,3.01536512,221.03,220.99,6.98648949]
[1758555324576,3.3505356,221.02,220.99,0.87]
[1758555324748,3.3505356,221.01,221.0,0.67]
[1758555325180,3.01536512,221.04,221.0,0.67]
[1758555325501,13.59559401,221.08,221.0,0.67]
[1758555325659,13.59559401,221.13,221.07,6.11648949]
[1758555325857,4.52202224,221.14,221.11,6.11648949]
[1758555325858,23.3159808,221.12,221.11,6.11648949]
[1758555326374,13.59559401,221.11,221.08,0.67]
[1758555326683,6.36845973,221.1,221.01,4.52468214]
[1758555326974,3.35193646,221.09,221.06,0.67]
[1758555327177,3.01652327,221.12,220.99,0.2]
[1758555327178,7.42349099,221.08,220.99,0.2]
[1758555327378,13.59559401,221.06,220.99,0.2]
[1758555327687,4.52406804,221.04,220.99,0.2]
[1758555327853,4.52406804,221.04,221.0,6.11648949]
[1758555328169,17.66597592,221.03,221.0,6.11648949]
[1758555328367,0.72,221.02,221.0,6.11648949]
[1758555328674,0.72,221.01,221.0,6.11648949]
[1758555329264,11.30896598,221.07,221.0,6.11648949]
[1758555329265,0.72,221.09,221.0,6.80648949]
[1758555329490,20.29619983,221.08,221.07,6.11648949]
[1758555329654,13.59559401,221.07,221.04,6.11648949]
[1758555329855,7.87395851,221.06,221.04,6.11648949]
[1758555330166,4.52365873,221.06,220.99,0.2]
[1758555330356,5.24365873,221.06,221.04,6.11648949]
[1758555330547,4.52365873,221.06,221.04,6.11648949]
[1758555330748,0.72,221.05,221.04,6.11648949]
[1758555330950,4.52365873,221.06,221.04,6.11648949]
[1758555331168,4.52365873,221.06,220.99,0.89]
[1758555331364,4.07011248,221.05,221.04,6.11648949]
[1758555331659,5.24386337,221.05,221.04,6.11648949]
[1758555331879,18.11920554,221.07,221.04,6.11648949]
[1758555332189,13.59559401,221.12,221.06,6.11648949]
[1758555332380,13.59559401,221.1,221.09,6.11648949]
[1758555332695,3.35010547,221.1,221.09,6.11648949]
[1758555332990,3.01529831,221.14,221.09,6.80648949]
[1758555333167,7.42172152,221.13,221.04,30.52395257]
[1758555333499,5.24161331,221.16,221.12,6.11648949]
[1758555333792,18.11761625,221.14,221.12,6.11648949]
[1758555333990,3.35093612,221.13,221.12,6.11648949]
[1758555334205,4.07093612,221.13,221.11,6.11648949]
[1758555334383,39.59559401,221.11,221.08,6.11648949]
[1758555334571,7.42222279,221.1,221.07,6.11648949]
[1758555334878,13.59559401,221.08,221.05,6.11648949]
[1758555335075,13.59559401,221.08,221.06,6.11648949]
[1758555335470,4.07343021,221.07,221.05,6.11648949]
[1758555335675,5.24355731,221.07,221.05,6.11648949]
[1758555335890,0.72,221.06,221.04,6.11648949]
[1758555336291,13.59559401,221.06,221.04,6.11648949]
[1758555336594,18.11843435,221.1,221.05,6.80648949]
[1758555336799,9.72500671,221.09,221.05,0.69]
[1758555337002,3.35355771,221.08,221.06,0.69]
[1758555337171,14.31559401,221.1,221.03,0.69]
[1758555337367,9.72674442,221.09,221.03,0.69]
[1758555337694,3.35437352,221.08,221.03,5.21408691]
[1758555337899,13.59559401,221.15,221.07,6.11648949]
[1758555338195,23.32530265,221.14,221.13,6.11648949]
[1758555338569,24.04530265,221.14,221.12,6.11648949]
[1758555338771,9.72970864,221.13,221.12,6.11648949]
[1758555339189,10.44970864,221.13,221.12,6.11648949]
[1758555340195,14.97193538,221.13,221.11,6.11648949]
[1758555340378,13.59559401,221.11,221.02,0.69]
[1758555340572,6.71036384,221.1,221.08,6.11648949]
[1758555340775,3.35518192,221.09,221.08,6.11648949]
[1758555341605,11.23254011,221.09,221.08,6.11648949]
[1758555342001,11.95254011,221.09,221.02,0.69]
[1758555342302,11.95254011,221.09,221.0,0.64843659]
[1758555342303,13.59559401,221.07,221.03,6.11648949]
[1758555342498,26.0,221.06,221.05,6.11648949]
[1758555342682,29.35384369,221.06,221.05,6.11648949]
[1758555343012,30.07390093,221.06,221.04,6.11648949]
[1758555343195,3.3537655,221.05,221.04,6.11648949]
[1758555343402,3.3537655,221.05,221.0,0.64843659]
[1758555343403,13.59559401,221.04,221.0,0.64843659]
[1758555343583,8.59894825,221.03,221.0,0.64843659]
[1758555343904,20.30508732,221.02,221.0,0.64843659]
[1758555344080,16.95046407,221.01,221.0,0.64843659]
[1758555344275,17.67046407,221.01,221.0,0.64843659]
[1758555344580,24.04283709,221.01,221.0,0.64843659]
[1758555345475,28.56751923,221.01,221.0,0.64843659]
[1758555349194,13.59559401,221.0,220.99,0.2]
[1758555349507,13.59559401,221.0,220.98,0.2]
[1758555349508,18.12068564,220.99,220.98,0.2]
[1758555349710,28.56792872,220.99,220.98,0.2]
[1758555349895,28.56792872,220.99,220.98,1e-08]
[1758555352019,28.56187087,220.99,220.98,1e-08]
[1758555352812,50.8235357,220.99,220.98,1e-08]
[1758555353281,51.5435357,220.99,220.98,1e-08]
[1758555354308,28.5561571,220.99,220.98,1e-08]
[1758555354509,54.5561571,220.99,220.98,1e-08]
[1758555354695,28.5561571,220.99,220.98,1e-08]
[1758555354892,28.54848468,220.99,220.98,1e-08]
[1758555355210,34.66497417,220.99,220.98,1e-08]
[1758555355526,60.66497417,220.99,220.98,1e-08]
[1758555356808,60.66421944,220.99,220.98,1e-08]
[1758555357811,27.82410346,220.99,220.98,1e-08]
[1758555358049,53.82410346,220.99,220.98,1e-08]
[1758555358188,24.81148206,220.99,220.98,1e-08]
[1758555358795,47.46608385,220.99,220.98,1e-08]
[1758555359107,21.46608385,220.99,220.98,1e-08]
[1758555359495,22.13608385,220.99,220.98,1e-08]
[1758555359809,27.82176531,220.99,220.98,1e-08]
[1758555360403,25.48111553,220.99,220.98,1e-08]
[1758555360589,34.60797677,220.99,220.98,1e-08]
[1758555360791,53.82148728,220.99,220.98,1e-08]
[1758555361412,27.82148728,220.99,220.98,1e-08]
[1758555361615,53.82148728,220.99,220.98,1e-08]
[1758555361830,24.81111553,220.99,220.98,0.65000001]
[1758555362004,3.34539821,220.99,220.98,0.65000001]
[1758555362202,7.53613622,221.01,220.98,6.7664895]
[1758555362407,13.59559401,220.99,220.98,1e-08]
[1758555362622,46.28753721,220.99,220.98,1e-08]
[1758555362824,42.9413792,220.99,220.98,1e-08]
[1758555363321,30.08649462,220.99,220.98,1e-08]
[1758555364311,34.61158625,220.99,220.98,1e-08]
[1758555367830,38.30980001,220.99,220.98,1e-08]
[1758555368220,34.61158625,220.99,220.98,1e-08]
[1758555368419,27.82509676,220.99,220.98,1e-08]
[1758555368729,27.82509676,220.99,220.98,0.65000001]
[1758555369038,27.82509676,220.99,220.98,1e-08]
[1758555369233,21.46647083,220.99,220.98,1e-08]
[1758555369421,47.46647083,220.99,220.98,1e-08]
[1758555369619,21.46647083,220.99,220.98,0.65000001]
[1758555371124,21.46647083,220.99,220.98,1e-08]
[1758555372013,24.90717513,220.99,220.98,1e-08]
[1758555372234,53.91555985,220.99,220.98,1e-08]
[1758555372448,27.91555985,220.99,220.98,1e-08]
[1758555372625,33.60663377,220.99,220.98,1e-08]
[1758555372818,36.94896076,220.99,220.98,1e-08]
[1758555373028,30.26427036,220.99,220.98,1e-08]
[1758555373428,19.7120835,220.95,220.94,1e-08]
[1758555373627,26.06223808,220.95,220.94,1e-08]
[1758555373942,23.39046822,220.95,220.94,1e-08]
[1758555374117,20.3820835,220.95,220.94,1e-08]
[1758555374643,30.92376797,220.95,220.94,1e-08]
[1758555375235,39.59559401,220.86,220.85,1e-08]
[1758555375444,49.05497032,220.86,220.85,1e-08]
[1758555375616,52.06862422,220.86,220.85,1e-08]
[1758555376339,55.40770318,220.86,220.85,1e-08]
[1758555376645,59.93545831,220.86,220.85,1e-08]
[1758555376819,53.14896882,220.86,220.85,1e-08]
[1758555377021,59.26545831,220.86,220.85,1e-08]
[1758555377448,56.92180441,220.86,220.85,1e-08]
[1758555377848,47.46623596,220.86,220.85,0.65000001]
[1758555378025,50.23983863,220.86,220.85,1e-08]
[1758555378431,53.57628341,220.86,220.85,1e-08]
[1758555378647,44.12334914,220.86,220.85,1e-08]
[1758555379031,50.23983863,220.86,220.85,1e-08]
[1758555379742,44.12334914,220.86,220.85,0.65000001]
[1758555380243,44.12334914,220.86,220.85,1e-08]
[1758555381322,48.97554768,220.86,220.85,1e-08]
[1758555381551,48.30554768,220.86,220.85,1e-08]
[1758555382146,52.31059151,220.86,220.85,1e-08]
[1758555382820,48.12839297,220.86,220.85,1e-08]
[1758555383143,51.64133216,220.86,220.85,1e-08]
[1758555383448,52.31133216,220.86,220.85,1e-08]
[1758555383962,51.64133216,220.86,220.85,1e-08]
[1758555385363,53.80296892,220.86,220.85,1e-08]
[1758555386028,57.98516746,220.86,220.85,1e-08]
[1758555386653,53.80296892,220.86,220.85,1e-08]
[1758555387229,53.81143182,220.86,220.85,1e-08]
[1758555387642,57.99363036,220.86,220.85,1e-08]
[1758555388132,13.59559401,220.91,220.85,4.89219855]
[1758555388331,6.35201499,220.9,220.86,0.71]
[1758555388643,26.0,220.9,220.88,4.18219854]
[1758555388856,39.59559401,220.89,220.88,4.18219854]
[1758555389225,53.81630798,220.89,220.88,4.18219854]
[1758555389425,53.81630798,220.89,220.88,4.89219854]
[1758555389653,53.81630798,220.89,220.88,0.71]
[1758555389827,13.59559401,220.88,220.85,0.71000001]
[1758555390154,3.34244379,220.87,220.86,4.89219854]
[1758555390346,6.68396159,220.87,220.86,4.18219854]
[1758555390847,13.59559401,220.86,220.85,1e-08]
[1758555391153,27.81532486,220.86,220.85,4.18219855]
[1758555391561,27.81532486,220.86,220.85,1e-08]
[1758555391726,32.6775234,220.86,220.85,1e-08]
[1758555392736,28.49532486,220.86,220.85,1e-08]
[1758555392941,32.6775234,220.86,220.85,1e-08]
[1758555393729,27.81532486,220.86,220.85,4.89219855]
[1758555394928,14.21973085,220.86,220.85,4.89219855]